fUST/lending_fUST_20251213
["ID","MTS","AMOUNT","RATE_DAILY","PERIOD"]
[398378569,1765559507593,-523.14,0.00045753,120]
[398378571,1765559507645,-546.73,0.00045753,120]
[398378574,1765559507698,-500.0,0.00045753,120]
[398378576,1765559507750,-871.53,0.00046027,30]
[398378578,1765559507801,-972.83,0.00046027,120]
[398378580,1765559507853,-1714.48,0.00046027,120]
[398378583,1765559507904,-1048.47,0.00046027,120]
[398378584,1765559507960,-4308.74,0.00046027,120]
[398378585,1765559508011,-535.91,0.00046027,120]
[398378586,1765559508061,-500.0,0.00046027,120]
[398378587,1765559508114,-1396.84,0.00046027,120]
[398378588,1765559508164,-500.0,0.00046027,120]
[398378590,1765559508216,-505.26,0.00046027,120]
[398378592,1765559508267,-1255.46,0.00046027,120]
[398378594,1765559508319,-500.0,0.00046027,120]
[398378596,1765559508377,-2836.47,0.00046027,120]
[398378599,1765559508431,-523.14,0.00046027,120]
[398378601,1765559508485,-546.73,0.00046027,120]
[398378603,1765559508539,-500.0,0.00046027,120]
[398378605,1765559508597,-871.53,0.00046301,30]
[398378608,1765559508653,-972.83,0.00046301,120]
[398378610,1765559508709,-1714.48,0.00046301,120]
[398378612,1765559508763,-1048.47,0.00046301,120]
[398378615,1765559508816,-4308.74,0.00046301,120]
[398378617,1765559508870,-535.91,0.00046301,120]
[398378619,1765559508923,-500.0,0.00046301,120]
[398378622,1765559508977,-1396.84,0.00046301,120]
[398378624,1765559509031,-500.0,0.00046301,120]
[398378626,1765559509083,-505.26,0.00046301,120]
[398378628,1765559509138,-1255.46,0.00046301,120]
[398378631,1765559509192,-500.0,0.00046301,120]
[398378633,1765559509246,-2836.47,0.00046301,120]
[398378635,1765559509299,-523.14,0.00046301,120]
[398378637,1765559509355,-546.73,0.00046301,120]
[398378639,1765559509411,-500.0,0.00046301,120]
[398378642,1765559509466,-871.53,0.00046575,30]
[398378644,1765559509522,-972.83,0.00046575,120]
[398378646,1765559509575,-1714.48,0.00046575,120]
[398378648,1765559509630,-1048.47,0.00046575,120]
[398378650,1765559509684,-4308.74,0.00046575,120]
[398378653,1765559509738,-535.91,0.00046575,120]
[398378655,1765559509790,-500.0,0.00046575,120]
[398378657,1765559509844,-1396.84,0.00046575,120]
[398378660,1765559509898,-524.06578389,0.00046575,120]
[398378662,1765559509951,-505.26,0.00046575,120]
[398378664,1765559510005,-1255.46,0.00046575,120]
[398378666,1765559510059,-500.0,0.00046575,120]
[398378668,1765559510113,-2836.47,0.00046575,120]
[398378671,1765559510167,-523.14,0.00046575,120]
[398378673,1765559510222,-546.73,0.00046575,120]
[398378675,1765559510276,-464.8838921,0.00046575,120]
[398378677,1765559510332,-664.99447965,0.000468,120]
[398378680,1765559510387,-405.20305289,0.000468,120]
[398378682,1765559510442,-749.84815281,0.000468,120]
[398378684,1765559510493,-1047.83651081,0.000468,120]
[398378686,1765559510544,-871.53,0.00046849,30]
[398378689,1765559510596,-972.83,0.00046849,120]
[398378691,1765559510647,-1714.48,0.00046849,120]
[398378695,1765559510779,-1048.47,0.00046849,120]
[398378698,1765559510832,-4308.74,0.00046849,120]
[398378700,1765559510885,-535.91,0.00046849,120]
[398378702,1765559510937,-500.0,0.00046849,120]
[398378704,1765559510989,-1396.84,0.00046849,120]
[398378707,1765559511042,-505.26,0.00046849,120]
[398378709,1765559511093,-1255.46,0.00046849,120]
[398378711,1765559511144,-500.0,0.00046849,120]
[398378713,1765559511198,-2836.47,0.00046849,120]
[398378716,1765559511258,-523.14,0.00046849,120]
[398378718,1765559511313,-546.73,0.00046849,120]
[398378720,1765559511367,-491.49614637,0.000469,120]
[398378722,1765559511417,-871.53,0.00047123,30]
[398378725,1765559511469,-972.83,0.00047123,120]
[398378727,1765559511520,-1714.48,0.00047123,120]
[398378729,1765559511571,-1048.47,0.00047123,120]
[398378731,1765559511626,-4308.74,0.00047123,120]
[398378734,1765559511676,-535.91,0.00047123,120]
[398378736,1765559511724,-500.0,0.00047123,120]
[398378738,1765559511773,-1396.84,0.00047123,120]
[398378741,1765559511823,-505.26,0.00047123,120]
[398378743,1765559511871,-1255.46,0.00047123,120]
[398378745,1765559511921,-595.9785178,0.00047123,120]
[398378747,1765559511971,-2836.47,0.00047123,120]
[398378750,1765559512020,-523.14,0.00047123,120]
[398378752,1765559512070,-546.73,0.00047123,120]
[398378754,1765559512122,-871.66737719,0.00047397,30]
[398378756,1765559512174,-973.05890568,0.00047397,120]
[398378758,1765559512231,-1714.48676241,0.00047397,120]
[398378759,1765559512285,-1048.50591669,0.00047397,120]
[398378760,1765559512338,-4308.91865064,0.00047397,120]
[398378761,1765559512390,-536.02295989,0.00047397,120]
[398378762,1765559512440,-500.06256829,0.00047397,120]
[398378763,1765559512487,-1397.04788018,0.00047397,120]
[398378765,1765559512534,-505.45579824,0.00047397,120]
[398378767,1765559512586,-1255.68944835,0.00047397,120]
[398378769,1765559512636,-2836.51001241,0.00047397,120]
[398378771,1765559512684,-523.14106178,0.00047397,120]
[398378774,1765559512732,-546.79587885,0.00047397,120]
[398378776,1765559512779,-664.99447965,0.000482,120]
[398378778,1765559512825,-405.20305289,0.000482,120]
[398378781,1765559512874,-749.84815281,0.000482,120]
[398378783,1765559512924,-1047.83651081,0.000482,120]
[398378785,1765559512973,-491.49614637,0.000483,120]
[398378788,1765559513022,-1047.83651081,0.000496,120]
[398378790,1765559513074,-1047.83651081,0.000511,120]
[398378792,1765559513126,-167.0,0.00052,120]
[398378795,1765559513182,-600.0,0.00052236,60]
[398378797,1765559513237,-1047.83651081,0.000526,120]
[398378799,1765559513289,-600.0,0.00052784,60]
[398378802,1765559513346,-415.0,0.00052805,120]
[398378804,1765559513401,-600.0,0.00053332,60]
[398378806,1765559513456,-1139.9576914,0.000537,60]
[398378809,1765559513510,-600.0,0.0005388,60]
[398378811,1765559513563,-881211.14539397,0.000539,85]
[398378813,1765559513617,-999999.0,0.000539,85]
[398378816,1765559513673,-805.15259296,0.00053989,120]
[398378818,1765559513727,-1000.0,0.00053999,120]
[398378820,1765559513779,-475.0,0.00053999,120]
[398378823,1765559513831,-2003.97409455,0.00054,120]
[398378825,1765559513883,-687.66357878,0.00054,120]
[398378827,1765559513930,-800.0,0.00054,120]
[398378829,1765559513979,-1000.0,0.00054,120]
[398378831,1765559514031,-2021.1,0.00054,120]
[398378834,1765559514082,-2000.0,0.00054,120]
[398378836,1765559514135,-2000.0,0.00054,120]
[398378838,1765559514189,-9998.0,0.00054,120]
[398378841,1765559514244,-2057.61550298,0.00054,120]
[398378843,1765559514294,-13926.89103842,0.00054,120]
[398378845,1765559514350,-182.02501173,0.00054,120]
[398378848,1765559514403,-367.6887475,0.000542,120]
[398378850,1765559514455,-615.60856,0.000542,120]
[398378852,1765559514506,-1047.83651081,0.000542,120]
[398378855,1765559514557,-174.0,0.000544,120]
[398378857,1765559514608,-600.0,0.00054428,60]
[398378859,1765559514658,-1000.0,0.00054499,120]
[398378862,1765559514709,-50000.0,0.0005458,120]
[398378864,1765559514761,-168.0,0.00054658,120]
[398378866,1765559514811,-1138.0,0.000547,60]
[398378869,1765559514860,-30164.70242251,0.000547,30]
[398378871,1765559514911,-1038.52,0.00054794,120]
[398378874,1765559514969,-1038.52,0.00054794,120]
[398378876,1765559515024,-1038.52,0.00054794,120]
[398378878,1765559515076,-1038.52,0.00054794,120]
[398378885,1765559515303,-1038.52,0.00054794,120]
[398378888,1765559515362,-1038.52,0.00054794,120]
[398378890,1765559515423,-1038.52,0.00054794,120]
[398378893,1765559515479,-1038.52,0.00054794,120]
[398378895,1765559515530,-1038.52,0.00054794,120]
[398378898,1765559515585,-1038.52,0.00054794,120]
[398378900,1765559515639,-1038.52,0.00054794,120]
[398378902,1765559515693,-1038.52,0.00054794,120]
[398378905,1765559515744,-1038.52,0.00054794,120]
[398378907,1765559515796,-1038.52,0.00054794,120]
[398378909,1765559515845,-1038.52,0.00054794,120]
[398378912,1765559515900,-1038.52,0.00054794,120]
[398378914,1765559515952,-1038.52,0.00054794,120]
[398378916,1765559516007,-1038.52,0.00054794,120]
[398378919,1765559516066,-1038.52,0.00054794,120]
[398378921,1765559516123,-1038.52,0.00054794,120]
[398378924,1765559516180,-1038.52,0.00054794,120]
[398378926,1765559516240,-1038.52,0.00054794,120]
[398378927,1765559516297,-1038.52,0.00054794,120]
[398378928,1765559516353,-1038.66,0.00054794,120]
[398378929,1765559516410,-250.0,0.00054794,30]
[398378931,1765559516469,-250.0,0.00054794,31]
[398378933,1765559516528,-251.06795389,0.00054794,32]
[398378935,1765559516586,-414.0,0.00054795,30]
[398378938,1765559516644,-429.318,0.00054795,30]
[398378940,1765559516700,-445.202766,0.00054795,30]
[398378943,1765559516757,-461.67526834,0.00054795,30]
[398378945,1765559516811,-478.75725327,0.00054795,30]
[398378948,1765559516863,-496.47127164,0.00054795,30]
[398378950,1765559516913,-514.84070869,0.00054795,30]
[398378953,1765559516969,-533.88981491,0.00054795,30]
[398378955,1765559517022,-238.13868635,0.00054795,30]
[398378957,1765559517075,-1699.0,0.00054795,30]
[398378960,1765559517127,-553.64373807,0.00054795,30]
[398378962,1765559517180,-500.0,0.00054795,30]
[398378964,1765559517235,-1699.0,0.00054795,30]
[398378967,1765559517294,-574.12855637,0.00054795,30]
[398378969,1765559517352,-500.0,0.00054795,30]
[398378972,1765559517408,-1699.0,0.00054795,30]
[398378974,1765559517466,-595.37131296,0.00054795,30]
[398378976,1765559517518,-151.0,0.00054795,30]
[398378979,1765559517573,-1699.0,0.00054795,30]
[398378981,1765559517630,-617.40005154,0.00054795,30]
[398378984,1765559517685,-500.0,0.00054795,30]
[398378986,1765559517737,-156.587,0.00054795,30]
[398378988,1765559517789,-1699.0,0.00054795,30]
[398378991,1765559517842,-640.24385345,0.00054795,30]
[398378993,1765559517892,-500.0,0.00054795,30]
[398378995,1765559517942,-162.380719,0.00054795,30]
[398378997,1765559517998,-1699.0,0.00054795,30]
[398379000,1765559518050,-663.93287602,0.00054795,30]
[398379002,1765559518105,-168.3888056,0.00054795,30]
[398379004,1765559518169,-500.0,0.00054795,30]
[398379007,1765559518224,-1699.0,0.00054795,30]
[398379009,1765559518281,-758.33387308,0.00054795,30]
[398379012,1765559518334,-298.18314183,0.00054795,30]
[398379014,1765559518393,-500.0,0.00054795,30]
[398379017,1765559518450,-1699.0,0.00054795,30]
[398379019,1765559518509,-500.0,0.00054795,30]
[398379021,1765559518567,-1699.0,0.00054795,30]
[398379024,1765559518624,-500.0,0.00054795,30]
[398379026,1765559518682,-1699.0,0.00054795,30]
[398379029,1765559518738,-500.0,0.00054795,30]
[398379031,1765559518792,-1699.0,0.00054795,30]
[398379034,1765559518844,-1699.0,0.00054795,30]
[398379036,1765559518898,-500.0,0.00054795,30]
[398379039,1765559518972,-1699.0,0.00054795,30]
[398379041,1765559519028,-500.0,0.00054795,30]
[398379044,1765559519084,-1699.0,0.00054795,30]
[398379046,1765559519144,-500.0,0.00054795,30]
[398379049,1765559519200,-500.0,0.00054795,30]
[398379051,1765559519255,-1699.0,0.00054795,30]
[398379054,1765559519308,-500.0,0.00054795,30]
[398379056,1765559519361,-1699.0,0.00054795,30]
[398379058,1765559519415,-500.0,0.00054795,30]
[398379061,1765559519469,-1699.0,0.00054795,30]
[398379063,1765559519521,-500.0,0.00054795,30]
[398379066,1765559519573,-1699.0,0.00054795,30]
[398379068,1765559519623,-500.0,0.00054795,30]
[398379070,1765559519674,-1699.0,0.00054795,30]
[398379073,1765559519723,-500.0,0.00054795,30]
[398379075,1765559519769,-1104.0,0.00054795,30]
[398379078,1765559519815,-250.0,0.00054795,30]
[398379080,1765559519862,-250.0,0.00054795,30]
[398379082,1765559519909,-250.0,0.00054795,30]
[398379085,1765559519963,-250.0,0.00054795,30]
[398379087,1765559520012,-250.0,0.00054795,30]
[398379090,1765559520079,-250.0,0.00054795,30]
[398379092,1765559520150,-250.0,0.00054795,30]
[398379093,1765559520211,-250.0,0.00054795,30]
[398379094,1765559520267,-151.0,0.00054795,30]
[398379095,1765559520325,-250.0,0.00054795,30]
[398379097,1765559520386,-250.0,0.00054795,30]
[398379099,1765559520444,-151.0,0.00054795,30]
[398379102,1765559520498,-250.0,0.00054795,30]
[398379104,1765559520552,-250.0,0.00054795,30]
[398379107,1765559520608,-151.0,0.00054795,30]
[398379109,1765559520661,-250.0,0.00054795,30]
[398379111,1765559520714,-250.0,0.00054795,30]
[398379114,1765559520766,-260.13562942,0.00054795,30]
[398379116,1765559520821,-250.0,0.00054795,30]
[398379118,1765559520886,-250.0,0.00054795,30]
[398379121,1765559520949,-250.0,0.00054795,30]
[398379123,1765559521014,-250.0,0.00054795,30]
[398379126,1765559521077,-3000.0,0.00054795,30]
[398379128,1765559521137,-250.0,0.00054795,30]
[398379131,1765559521194,-3000.0,0.00054795,30]
[398379133,1765559521248,-250.0,0.00054795,30]
[398379135,1765559521299,-3000.0,0.00054795,30]
[398379137,1765559521352,-250.0,0.00054795,30]
[398379139,1765559521404,-3000.0,0.00054795,30]
[398379142,1765559521457,-250.0,0.00054795,30]
[398379144,1765559521512,-250.0,0.00054795,30]
[398379146,1765559521567,-250.0,0.00054795,30]
[398379148,1765559521621,-250.0,0.00054795,30]
[398379151,1765559521674,-151.0,0.00054795,30]
[398379153,1765559521726,-250.0,0.00054795,30]
[398379155,1765559521776,-156.587,0.00054795,30]
[398379158,1765559521830,-250.0,0.00054795,30]
[398379160,1765559521882,-151.0,0.00054795,30]
[398379163,1765559521935,-162.380719,0.00054795,30]
[398379165,1765559522002,-250.0,0.00054795,30]
[398379168,1765559522057,-168.3888056,0.00054795,30]
[398379170,1765559522111,-151.0,0.00054795,30]
[398379172,1765559522166,-250.0,0.00054795,30]
[398379175,1765559522219,-174.61919141,0.00054795,30]
[398379177,1765559522272,-151.0,0.00054795,30]
[398379179,1765559522323,-181.08010149,0.00054795,30]
[398379182,1765559522378,-151.0,0.00054795,30]
[398379184,1765559522434,-187.78006525,0.00054795,30]
[398379186,1765559522489,-184.56014172,0.00054795,30]
[398379188,1765559522542,-194.72792766,0.00054795,30]
[398379191,1765559522596,-201.93286098,0.00054795,30]
[398379193,1765559522651,-151.0,0.00054795,30]
[398379195,1765559522706,-151.0,0.00054795,30]
[398379198,1765559522761,-151.0,0.00054795,30]
[398379200,1765559522816,-250.0,0.00054795,30]
[398379202,1765559522867,-250.0,0.00054795,30]
[398379205,1765559522922,-151.0,0.00054795,30]
[398379207,1765559522983,-250.0,0.00054795,30]
[398379209,1765559523040,-153.71671862,0.00054795,30]
[398379212,1765559523099,-250.0,0.00054795,30]
[398379214,1765559523154,-250.0,0.00054795,30]
[398379216,1765559523212,-250.0,0.00054795,30]
[398379219,1765559523268,-354.50333089,0.00054795,30]
[398379221,1765559523326,-250.0,0.00054795,30]
[398379223,1765559523382,-2000.0,0.00054795,30]
[398379225,1765559523442,-250.0,0.00054795,30]
[398379228,1765559523498,-2074.0,0.00054795,30]
[398379230,1765559523559,-250.0,0.00054795,30]
[398379232,1765559523619,-2150.738,0.00054795,30]
[398379235,1765559523677,-250.0,0.00054795,30]
[398379237,1765559523730,-2230.315306,0.00054795,30]
[398379240,1765559523793,-250.0,0.00054795,30]
[398379242,1765559523859,-2312.83697232,0.00054795,30]
[398379244,1765559523918,-250.0,0.00054795,30]
[398379247,1765559523977,-250.0,0.00054795,30]
[398379249,1765559524031,-2398.4119403,0.00054795,30]
[398379251,1765559524090,-250.0,0.00054795,30]
[398379254,1765559524148,-250.0,0.00054795,30]
[398379256,1765559524210,-2487.15318209,0.00054795,30]
[398379258,1765559524266,-250.0,0.00054795,30]
[398379262,1765559524409,-250.0,0.00054795,30]
[398379263,1765559524466,-2579.17784983,0.00054795,30]
[398379264,1765559524522,-250.0,0.00054795,30]
[398379265,1765559524579,-250.0,0.00054795,30]
[398379266,1765559524635,-2674.60743027,0.00054795,30]
[398379267,1765559524687,-250.0,0.00054795,30]
[398379268,1765559524739,-250.0,0.00054795,30]
[398379271,1765559524792,-2773.56790519,0.00054795,30]
[398379273,1765559524846,-250.0,0.00054795,30]
[398379275,1765559524899,-2876.18991768,0.00054795,30]
[398379277,1765559524950,-250.0,0.00054795,30]
[398379280,1765559525004,-250.0,0.00054795,30]
[398379282,1765559525057,-2982.60894465,0.00054795,30]
[398379284,1765559525110,-291.17825768,0.00054795,30]
[398379287,1765559525167,-500.0,0.00054795,30]
[398379289,1765559525228,-500.0,0.00054795,30]
[398379291,1765559525283,-500.0,0.00054795,30]
[398379293,1765559525340,-500.0,0.00054795,30]
[398379296,1765559525397,-253.24296466,0.00054795,30]
[398379300,1765559525568,645.01,0.000357,30]
[398379302,1765559525635,645.01,0.000381,30]
[398379305,1765559525700,202.07605128,0.000429,120]
[398379307,1765559525765,500.0,0.00041095,120]
[398379309,1765559525829,645.01,0.000427,30]
[398379312,1765559525896,500.0,0.00041369,120]
[398379314,1765559525959,202.07605128,0.000442,120]
[398379317,1765559526022,508.47972359,0.000429,120]
[398379319,1765559526083,500.0,0.00041643,120]
[398379322,1765559526154,500.0,0.00041917,120]
[398379324,1765559526224,500.0,0.00042191,120]
[398379326,1765559526283,202.07605128,0.000455,120]
[398379329,1765559526343,508.47972359,0.000442,120]
[398379331,1765559526410,500.0,0.00042465,120]
[398379334,1765559526476,500.0,0.00041095,120]
[398379336,1765559526537,500.0,0.00042739,120]
[398379338,1765559526602,500.0,0.00041369,120]
[398379341,1765559526663,508.47972359,0.000455,120]
[398379343,1765559526722,500.0,0.00043013,120]
[398379346,1765559526779,500.0,0.00041643,120]
[398379348,1765559526836,500.0,0.00043287,120]
[398379351,1765559526896,500.0,0.00041917,120]
[398379353,1765559526955,508.47972359,0.000469,120]
[398379355,1765559527015,500.0,0.00043561,120]
[398379358,1765559527084,559.25655137,0.00042191,120]
[398379361,1765559527183,500.0,0.00043835,120]
[398379364,1765559527250,508.47972359,0.000483,120]
[398379366,1765559527313,500.0,0.00044109,120]
[398379369,1765559527374,500.0,0.00044383,120]
[398379371,1765559527434,500.0,0.00044657,120]
[398379374,1765559527495,500.0,0.00044931,120]
[398379376,1765559527555,500.0,0.00045205,120]
[398379379,1765559527614,500.0,0.00045479,120]
[398379381,1765559527674,500.0,0.00045753,120]
[398379384,1765559527734,500.0,0.00041095,120]
[398379386,1765559527793,323.27076598,0.00046027,120]
[398379389,1765559527853,500.0,0.00041369,120]
[398379392,1765559527931,492.6519871,0.00041643,120]
[398379396,1765559528099,500.0,0.00041095,120]
[398379399,1765559528169,500.64950428,0.00041369,120]
[398379402,1765559528269,500.0,0.00041095,120]
[398379405,1765559528337,500.0,0.00041369,120]
[398379407,1765559528406,500.0,0.00041643,120]
[398379410,1765559528477,500.0,0.00041917,120]
[398379413,1765559528555,500.0,0.00042191,120]
[398379420,1765559528835,500.0,0.00042465,120]
[398379422,1765559528910,500.0,0.00042739,120]
[398379423,1765559528983,500.0,0.00043013,120]
[398379424,1765559529052,500.0,0.00041095,120]
[398379425,1765559529122,500.0,0.00043287,120]
[398379427,1765559529188,500.0,0.00043561,120]
[398379430,1765559529254,501.85361206,0.00041369,120]
[398379432,1765559529321,174.87552303,0.00043835,120]
[398379574,1765559550908,-316.088162,0.00037496,31]
[398379575,1765559550966,-316.088162,0.00037496,31]
[398379576,1765559551022,-316.088162,0.00037496,31]
[398379577,1765559551077,-316.088162,0.00037496,31]
[398379578,1765559551134,-316.088162,0.00037496,31]
[398379579,1765559551191,-316.088162,0.00037496,31]
[398379580,1765559551250,-316.088162,0.00037496,31]
[398379581,1765559551304,-316.088162,0.00037496,31]
[398379582,1765559551372,-500.0,0.00041095,120]
[398379583,1765559551431,-1499.42,0.00041095,120]
[398379584,1765559551492,-500.0,0.00041095,120]
[398379585,1765559551546,-500.0,0.00041095,120]
[398379586,1765559551600,-500.0,0.00041095,120]
[398379587,1765559551655,-500.0,0.00041095,120]
[398379588,1765559551708,-500.0,0.00041095,120]
[398379589,1765559551760,-500.0,0.00041095,120]
[398379590,1765559551810,-690.3,0.00041095,120]
[398379591,1765559551860,-500.0,0.00041095,120]
[398379592,1765559551913,-507.36691671,0.00041095,120]
[398379593,1765559551964,-500.0,0.00041095,120]
[398379594,1765559552023,-500.0,0.00041095,120]
[398379595,1765559552079,-500.0,0.00041095,120]
[398379596,1765559552136,-500.0,0.00041095,120]
[398379597,1765559552192,-717.55,0.00041095,120]
[398379598,1765559552248,-500.0,0.00041369,120]
[398379599,1765559552296,-1499.42,0.00041369,120]
[398379600,1765559552348,-500.0,0.00041369,120]
[398379601,1765559552402,-500.0,0.00041369,120]
[398379602,1765559552455,-500.0,0.00041369,120]
[398379603,1765559552505,-500.0,0.00041369,120]
[398379604,1765559552556,-500.0,0.00041369,120]
[398379605,1765559552609,-500.0,0.00041369,120]
[398379606,1765559552661,-690.3,0.00041369,120]
[398379607,1765559552712,-500.0,0.00041369,120]
[398379608,1765559552761,-500.0,0.00041369,120]
[398379609,1765559552807,-500.0,0.00041369,120]
[398379610,1765559552854,-500.0,0.00041369,120]
[398379611,1765559552901,-500.0,0.00041369,120]
[398379612,1765559552949,-717.55,0.00041369,120]
[398379613,1765559553001,-316.088162,0.00041496,120]
[398379614,1765559553058,-316.088162,0.00041496,120]
[398379615,1765559553116,-316.088162,0.00041496,120]
[398379616,1765559553178,-316.088162,0.00041496,120]
[398379617,1765559553240,-500.0,0.00041643,120]
[398379618,1765559553302,-1499.42,0.00041643,120]
[398379619,1765559553361,-500.0,0.00041643,120]
[398379620,1765559553423,-500.0,0.00041643,120]
[398379621,1765559553481,-500.0,0.00041643,120]
[398379622,1765559553542,-600.12,0.00041643,120]
[398379623,1765559553602,-500.0,0.00041643,120]
[398379624,1765559553664,-500.0,0.00041643,120]
[398379625,1765559553724,-690.3,0.00041643,120]
[398379626,1765559553783,-500.0,0.00041643,120]
[398379627,1765559553838,-500.0,0.00041643,120]
[398379628,1765559553895,-500.0,0.00041643,120]
[398379629,1765559553955,-500.0,0.00041643,120]
[398379630,1765559554011,-500.0,0.00041643,120]
[398379631,1765559554065,-717.55,0.00041643,120]
[398379632,1765559554122,-500.0,0.00041917,120]
[398379633,1765559554177,-1499.42,0.00041917,120]
[398379634,1765559554231,-500.0,0.00041917,120]
[398379635,1765559554287,-500.0,0.00041917,120]
[398379636,1765559554341,-500.0,0.00041917,120]
[398379637,1765559554397,-500.0,0.00041917,120]
[398379638,1765559554454,-500.0,0.00041917,120]
[398379639,1765559554506,-690.3,0.00041917,120]
[398379640,1765559554562,-500.0,0.00041917,120]
[398379641,1765559554616,-500.0,0.00041917,120]
[398379642,1765559554668,-500.0,0.00041917,120]
[398379643,1765559554717,-500.0,0.00041917,120]
[398379644,1765559554767,-500.0,0.00041917,120]
[398379645,1765559554819,-717.55,0.00041917,120]
[398379646,1765559554872,-500.0,0.00042191,120]
[398379647,1765559554924,-1499.42,0.00042191,120]
[398379648,1765559554992,-500.0,0.00042191,120]
[398379649,1765559555050,-500.0,0.00042191,120]
[398379650,1765559555110,-500.0,0.00042191,120]
[398379651,1765559555166,-500.0,0.00042191,120]
[398379652,1765559555220,-500.0,0.00042191,120]
[398379653,1765559555269,-690.3,0.00042191,120]
[398379654,1765559555320,-203.72077042,0.00042191,120]
[398379655,1765559555376,-500.0,0.00042191,120]
[398379656,1765559555431,-500.0,0.00042191,120]
[398379657,1765559555485,-500.0,0.00042191,120]
[398379658,1765559555537,-500.0,0.00042191,120]
[398379659,1765559555591,-717.55,0.00042191,120]
[398379660,1765559555645,-500.0,0.00042465,120]
[398379661,1765559555700,-1499.42,0.00042465,120]
[398379662,1765559555751,-500.0,0.00042465,120]
[398379663,1765559555800,-500.0,0.00042465,120]
[398379664,1765559555852,-350.51940806,0.00042465,120]
[398379665,1765559555902,-500.0,0.00042465,120]
[398379666,1765559555952,-500.0,0.00042465,120]
[398379667,1765559556004,-690.3,0.00042465,120]
[398379668,1765559556058,-500.0,0.00042465,120]
[398379669,1765559556112,-500.0,0.00042465,120]
[398379670,1765559556263,-500.0,0.00042465,120]
[398379671,1765559556325,-500.0,0.00042465,120]
[398379672,1765559556385,-717.55,0.00042465,120]
[398379673,1765559556444,-500.0,0.00042739,120]
[398379674,1765559556506,-1499.42,0.00042739,120]
[398379675,1765559556557,-500.0,0.00042739,120]
[398379676,1765559556609,-439.36187124,0.00042739,120]
[398379677,1765559556661,-500.0,0.00042739,120]
[398379678,1765559556708,-500.0,0.00042739,120]
[398379679,1765559556755,-690.3,0.00042739,120]
[398379680,1765559556801,-500.0,0.00042739,120]
[398379681,1765559556847,-500.0,0.00042739,120]
[398379682,1765559556893,-500.0,0.00042739,120]
[398379683,1765559556942,-559.87354125,0.00042739,120]
[398379684,1765559556988,-717.55,0.00042739,120]
[398379685,1765559557035,-500.0,0.00043013,120]
[398379686,1765559557085,-1499.42,0.00043013,120]
[398379687,1765559557130,-500.0,0.00043013,120]
[398379688,1765559557180,-500.0,0.00043013,120]
[398379689,1765559557230,-500.0,0.00043013,120]
[398379690,1765559557278,-690.3,0.00043013,120]
[398379691,1765559557326,-500.0,0.00043013,120]
[398379692,1765559557378,-500.0,0.00043013,120]
[398379693,1765559557431,-500.0,0.00043013,120]
[398379694,1765559557483,-717.55,0.00043013,120]
[398379695,1765559557541,-500.0,0.00043287,120]
[398379696,1765559557608,-1499.42,0.00043287,120]
[398379697,1765559557667,-500.0,0.00043287,120]